bitfinex/quotes_BTCUSD_20260215
["timestamp","ask_amount","ask_price","bid_price","bid_amount"]
[1771140668900,0.2584805,70737.0,70730.0,0.07069134]
[1771140669080,0.00052,70738.0,70729.0,0.33896]
[1771140669283,0.00052,70738.0,70729.0,0.36306698]
[1771140669479,0.00052,70738.0,70731.0,0.0706894]
[1771140669679,0.00052,70738.0,70730.0,0.02410698]
[1771140669905,1e-08,70738.0,70731.0,0.02410698]
[1771140670105,0.00012998,70738.0,70735.0,0.0947931]
[1771140670538,0.00012998,70738.0,70735.0,0.02410698]
[1771140670737,0.00012998,70738.0,70737.0,0.02410698]
[1771140670968,0.00012998,70738.0,70737.0,0.09479134]
[1771140671147,0.00012,70740.0,70736.0,0.07068451]
[1771140671352,0.00012,70740.0,70733.0,0.28275184]
[1771140671353,0.00012,70740.0,70739.0,0.07068236]
[1771140671552,0.00012,70740.0,70739.0,0.43370934]
[1771140672735,0.00012,70740.0,70739.0,0.43340849]
[1771140673492,0.00012,70740.0,70739.0,0.43295729]
[1771140673712,0.00012,70740.0,70739.0,0.43280691]
[1771140674677,0.27148078,70756.0,70740.0,0.02274671]
[1771140674878,0.29542399,70756.0,70741.0,0.07067952]
[1771140675029,0.26112078,70756.0,70741.0,0.02250671]
[1771140675231,0.26112078,70756.0,70740.0,0.33101709]
[1771140675435,0.26112078,70756.0,70744.0,0.07067696]
[1771140676050,0.26112078,70756.0,70739.0,0.4294]
[1771140676051,0.0004427,70757.0,70727.0,0.02250671]
[1771140676247,0.0004427,70757.0,70732.0,0.07068744]
[1771140676248,0.02394321,70746.0,70732.0,0.07068744]
[1771140676450,0.27148078,70743.0,70733.0,0.07068737]
[1771140676671,0.29542399,70743.0,70731.0,0.14036941]
[1771140676874,0.02394321,70740.0,70730.0,0.00024997]
[1771140677047,0.27148078,70739.0,70732.0,0.33884]
[1771140677463,0.27148078,70739.0,70730.0,0.00024997]
[1771140677464,0.27148078,70739.0,70730.0,0.07094044]
[1771140677649,0.27148078,70739.0,70731.0,0.33787314]
[1771140678153,0.27148078,70739.0,70731.0,0.40856315]
[1771140678514,0.27148078,70743.0,70731.0,0.40856315]
[1771140678749,0.00012,70750.0,70733.0,0.07068749]
[1771140678944,0.27160078,70750.0,70732.0,0.28275345]
[1771140679138,0.27160078,70750.0,70740.0,0.0706808]
[1771140679634,0.27160078,70750.0,70740.0,0.0705304]
[1771140679823,0.27160078,70750.0,70739.0,0.07068048]
[1771140679824,0.27160078,70750.0,70735.0,0.09319238]
[1771140680006,0.02394321,70747.0,70731.0,0.33787314]
[1771140680235,0.02394321,70745.0,70731.0,0.33787314]
[1771140680445,0.29542399,70744.0,70731.0,0.33787314]
[1771140680644,0.02394321,70741.0,70732.0,0.3388]
[1771140681072,0.00012,70750.0,70723.0,0.3388]
[1771140681073,0.27148078,70735.0,70723.0,0.3388]
[1771140681296,0.29542399,70735.0,70723.0,0.3388]
[1771140681524,0.0004,70739.0,70730.0,0.02418017]
[1771140681745,0.0005299,70739.0,70725.0,0.02418017]
[1771140681956,0.27201068,70739.0,70726.0,0.02418017]
[1771140682436,0.27148078,70737.0,70723.0,0.3388]
[1771140682649,0.27148078,70737.0,70725.0,0.07069629]
[1771140682859,0.27148078,70737.0,70726.0,0.07069503]
[1771140683082,0.27148078,70737.0,70724.0,0.02418017]
[1771140683927,0.27148078,70737.0,70727.0,0.07069353]
[1771140684258,0.27148078,70737.0,70724.0,0.02418017]
[1771140684742,0.27312042,70735.0,70720.0,0.07082123]
[1771140684946,0.00163964,70734.0,70720.0,0.40962123]
[1771140685157,0.27148078,70733.0,70721.0,0.07070011]
[1771140685357,0.27148078,70733.0,70720.0,0.40962123]
[1771140685906,0.27312042,70733.0,70721.0,0.07070028]
[1771140686821,0.27312042,70733.0,70720.0,0.4096194]
[1771140687087,0.27312042,70733.0,70720.0,0.33892]
[1771140687379,0.27312042,70733.0,70720.0,0.00012]
[1771140687739,0.27312042,70733.0,70720.0,0.07102126]
[1771140688098,0.27312042,70733.0,70721.0,0.07070011]
[1771140688456,0.27312042,70733.0,70720.0,0.00032]
[1771140688703,0.0004,70735.0,70721.0,0.02418017]
[1771140688910,0.0004,70735.0,70723.0,0.02418017]
[1771140689165,0.0004,70735.0,70720.0,0.33109709]
[1771140689362,0.0004,70735.0,70726.0,0.09487518]
[1771140689574,0.0004,70735.0,70726.0,0.09472494]
[1771140690390,0.0004,70735.0,70727.0,0.07069405]
[1771140690594,0.0004,70735.0,70728.0,0.02410505]
[1771140692708,0.27188078,70735.0,70721.0,0.02410505]
[1771140692927,0.27188078,70735.0,70722.0,0.07069917]
[1771140693144,0.0004,70735.0,70720.0,0.33109709]
[1771140693358,0.0004,70735.0,70731.0,0.02410505]
[1771140693569,0.0004,70735.0,70731.0,0.07069031]
[1771140693795,0.0004,70735.0,70732.0,0.02410505]
[1771140694444,0.33916,70747.0,70731.0,0.07069031]
[1771140694445,0.27200078,70750.0,70736.0,0.02410505]
[1771140694657,0.28469895,70749.0,70732.0,0.02410505]
[1771140694894,0.28469895,70749.0,70733.0,0.07068756]
[1771140694895,0.27148078,70747.0,70733.0,0.07068756]
[1771140695142,0.27148078,70747.0,70733.0,0.07068805]
[1771140695362,0.01322536,70746.0,70734.0,0.07068723]
[1771140695598,0.27148078,70747.0,70733.0,0.02410505]
[1771140695599,0.01322536,70745.0,70733.0,0.09479319]
[1771140695801,0.0004,70735.0,70732.0,0.0001299]
[1771140695919,0.0004,70735.0,70730.0,0.00012]
[1771140696774,0.0004,70735.0,70730.0,0.07081093]
[1771140697769,0.0004,70735.0,70730.0,0.00012]
[1771140699883,0.0004,70735.0,70731.0,0.02410505]
[1771140700084,0.0004,70735.0,70730.0,0.07081042]
[1771140700507,0.0004,70735.0,70732.0,0.02410505]
[1771140700708,0.0004,70735.0,70733.0,0.02410505]
[1771140701179,0.0004,70743.0,70730.0,0.00012]
[1771140701372,0.00052992,70743.0,70731.0,0.02410505]
[1771140701550,0.00052992,70743.0,70732.0,0.2861586]
[1771140701705,0.00052992,70743.0,70739.0,0.02450079]
[1771140702794,0.00052992,70743.0,70734.0,0.4190259]
[1771140702998,0.00052992,70743.0,70736.0,0.07068467]
[1771140703398,0.00052992,70743.0,70736.0,0.09534803]
[1771140704438,0.00052992,70743.0,70736.0,0.02451314]
[1771140704783,0.00052992,70743.0,70736.0,0.09519806]
[1771140705184,0.00052992,70743.0,70736.0,0.02451314]
[1771140705585,0.00052992,70743.0,70735.0,0.33876]
[1771140705939,0.00052992,70743.0,70733.0,0.33876]
[1771140706141,0.02401006,70742.0,70733.0,0.33876]
[1771140706367,0.26362004,70741.0,70733.0,0.33876]
[1771140706811,0.02401006,70740.0,70720.0,0.00032]
[1771140706963,0.26362004,70737.0,70726.0,0.07069527]
[1771140707156,0.2876301,70737.0,70724.0,0.07069735]
[1771140707363,0.2876301,70737.0,70726.0,0.07069465]
[1771140707559,0.02401006,70737.0,70726.0,0.07069465]
[1771140707914,0.02401006,70737.0,70727.0,0.0706943]
[1771140708495,0.02401006,70737.0,70726.0,0.07069495]
[1771140708696,0.02401006,70737.0,70725.0,0.070696]
[1771140708886,0.02401006,70737.0,70723.0,0.07089749]
[1771140709093,0.00012,70740.0,70726.0,0.0002]
[1771140709292,0.02413006,70740.0,70726.0,0.07089465]
[1771140709497,0.0004,70737.0,70726.0,0.07089465]
[1771140710240,0.0004,70737.0,70726.0,0.0002]
[1771140711137,0.0004,70737.0,70727.0,0.02466336]
[1771140711582,0.0004,70737.0,70727.0,0.09535761]
[1771140712422,0.0004,70737.0,70727.0,0.02466336]
[1771140718458,0.0004,70737.0,70726.0,0.0002]
[1771140718459,0.2880301,70737.0,70726.0,0.0002]
[1771140718825,0.2880301,70737.0,70727.0,0.0002]
[1771140719039,0.2880301,70737.0,70727.0,4.978e-05]
[1771140719940,0.2880301,70737.0,70726.0,0.00010438]
[1771140720164,0.2880301,70737.0,70724.0,0.07069711]
[1771140720367,0.0004,70737.0,70727.0,0.07069339]
[1771140720570,0.00012,70740.0,70731.0,0.07068955]
[1771140720777,0.00012,70740.0,70731.0,0.07069033]
[1771140720973,0.00060492,70743.0,70731.0,0.07069033]
[1771140720974,7.5e-05,70743.0,70731.0,0.27901983]
[1771140721177,0.02445276,70757.0,70736.0,0.27901983]
[1771140721396,0.02445276,70757.0,70741.0,0.02466336]
[1771140721397,0.14131819,70753.0,70741.0,0.02466336]
[1771140721811,0.0706694,70752.0,70741.0,0.02466336]
[1771140722004,0.16532825,70753.0,70740.0,0.29404323]
[1771140722191,0.07079161,70750.0,70736.0,0.02466336]
[1771140722385,0.02401006,70747.0,70730.0,0.63292323]
[1771140722701,0.02401006,70746.0,70731.0,0.07069036]
[1771140722900,0.00012,70750.0,70736.0,0.07068471]
[1771140723101,0.01324854,70749.0,70737.0,0.07068436]
[1771140723360,0.00012,70750.0,70737.0,0.07068436]
[1771140723518,0.01324842,70749.0,70735.0,0.0953495]
[1771140723702,0.00012,70750.0,70735.0,0.0953495]
[1771140723902,0.01324842,70749.0,70735.0,0.0953495]
[1771140724112,0.00012,70750.0,70735.0,0.0953495]
[1771140724310,0.00012,70750.0,70740.0,0.33079825]
[1771140724517,0.33876,70758.0,70745.0,0.07067572]
[1771140724716,0.33876,70758.0,70746.0,0.02466336]
[1771140725139,0.33876,70758.0,70747.0,0.02466336]
[1771140725560,0.00012,70760.0,70748.0,0.0706725]
[1771140725730,0.00012,70760.0,70747.0,0.02466336]
[1771140726092,0.00012,70760.0,70751.0,0.07066965]
[1771140726215,0.00012,70760.0,70752.0,0.09533251]
[1771140726431,0.00012,70760.0,70756.0,0.02466336]
[1771140726834,0.00012,70760.0,70750.0,0.07067083]
[1771140727056,0.00012,70770.0,70750.0,0.07067083]
[1771140727057,0.00012,70770.0,70751.0,0.27901983]
[1771140727257,0.00012,70770.0,70760.0,0.40145891]
[1771140727486,0.00024995,70770.0,70752.0,0.02466336]
[1771140727712,0.00024995,70770.0,70764.0,0.07065694]
[1771140727920,0.02426001,70770.0,70750.0,0.33091825]
[1771140728049,0.02401006,70769.0,70752.0,0.33876]
[1771140728251,0.02401006,70769.0,70757.0,0.07066428]
[1771140729033,0.00024995,70770.0,70759.0,0.33079825]
[1771140729218,0.00024995,70770.0,70763.0,0.07065774]
[1771140729406,0.00125078,70776.0,70765.0,0.09531903]
[1771140729610,0.00125078,70776.0,70760.0,0.00012]
[1771140729814,0.02401006,70773.0,70760.0,0.00024995]
[1771140730157,0.02401006,70773.0,70760.0,0.07091133]
[1771140730366,0.02401006,70773.0,70760.0,0.00024995]
[1771140731600,0.26362004,70775.0,70760.0,0.00024995]
[1771140731804,0.02401006,70772.0,70760.0,0.00024995]
[1771140732250,0.07189663,70776.0,70760.0,0.00024995]
[1771140732251,0.00125078,70776.0,70760.0,0.00024995]
[1771140732623,0.07064956,70772.0,70760.0,0.00024995]
[1771140732824,0.09465962,70772.0,70760.0,0.00024995]
[1771140733042,0.02401006,70772.0,70760.0,0.00024995]
[1771140734557,0.09465967,70772.0,70760.0,0.00024995]
[1771140735763,0.0006871,70773.0,70752.0,0.0002]
[1771140735764,0.07065717,70765.0,70752.0,0.0002]
[1771140735918,0.02412121,70763.0,70752.0,0.0002]
[1771140736792,0.02412121,70763.0,70752.0,4.979e-05]
[1771140737017,0.27535895,70765.0,70752.0,4.979e-05]
[1771140737225,0.02412121,70762.0,70752.0,4.979e-05]
[1771140737862,0.02412121,70760.0,70752.0,4.979e-05]
[1771140738296,0.02412121,70762.0,70752.0,4.979e-05]
[1771140738519,0.00012985,70765.0,70752.0,4.979e-05]
[1771140738738,0.02425106,70765.0,70752.0,4.979e-05]
[1771140738946,0.09490816,70765.0,70752.0,4.979e-05]
[1771140739326,0.07065754,70764.0,70752.0,4.979e-05]
[1771140739470,0.02425106,70765.0,70752.0,4.979e-05]
[1771140739671,0.09490784,70765.0,70752.0,4.979e-05]
[1771140740903,0.02412121,70760.0,70752.0,4.979e-05]
[1771140741124,0.02412121,70757.0,70742.0,0.02400935]
[1771140741334,0.02412121,70756.0,70742.0,0.02400935]
[1771140743453,0.07066645,70755.0,70742.0,0.02400935]
[1771140743681,0.02412121,70755.0,70740.0,0.29410291]
[1771140744531,0.02412121,70755.0,70741.0,0.07068027]
[1771140744729,0.29410291,70760.0,70740.0,0.00012]
[1771140744730,0.02412121,70752.0,70740.0,0.00012]
[1771140744931,0.02412121,70748.0,70737.0,0.0002]
[1771140746423,0.02412121,70746.0,70737.0,0.0002]
[1771140746934,0.02412121,70745.0,70737.0,0.0002]
[1771140748267,0.2752291,70744.0,70730.0,0.00012]
[1771140748464,0.33096286,70750.0,70730.0,0.00012]
[1771140748465,0.00012,70750.0,70734.0,0.02400935]
[1771140748677,0.07067454,70747.0,70734.0,0.02400935]
[1771140748902,0.02412121,70744.0,70730.0,0.000185]
[1771140749323,0.02412121,70744.0,70731.0,0.02400935]
[1771140749732,0.6139091,70749.0,70731.0,0.02400935]
[1771140749950,0.6119091,70749.0,70733.0,0.02400935]
[1771140750158,0.33668,70749.0,70731.0,0.29679215]
[1771140750407,0.02412121,70748.0,70732.0,0.07068867]
[1771140751220,0.02412121,70746.0,70731.0,0.02400935]
[1771140751417,0.2752291,70747.0,70730.0,0.35497221]
[1771140751418,0.02412121,70747.0,70730.0,0.35497221]
[1771140751672,0.02412121,70747.0,70732.0,0.30154323]
[1771140752483,0.40735306,70749.0,70732.0,0.30154323]
[1771140752484,0.33668,70749.0,70736.0,0.07068444]
[1771140752684,0.33668,70749.0,70736.0,0.02400935]
[1771140753032,0.33668,70749.0,70736.0,0.27753388]
[1771140753238,0.02412121,70748.0,70731.0,0.07069029]
[1771140753439,0.33668,70749.0,70733.0,0.27753388]
[1771140753677,0.33668,70749.0,70739.0,0.02400935]
[1771140754846,0.33668,70749.0,70737.0,0.07068433]
[1771140755233,0.33668,70749.0,70742.0,0.07067869]
[1771140755378,0.00012,70750.0,70741.0,0.09468804]
[1771140755584,0.00012,70750.0,70742.0,0.07067937]
[1771140755788,0.00012,70750.0,70744.0,0.30154323]
[1771140756189,0.00012,70750.0,70738.0,0.07068261]
[1771140756363,0.00012,70750.0,70739.0,0.30154323]
[1771140756567,0.00012,70750.0,70740.0,0.07068131]
[1771140756807,0.00012,70750.0,70739.0,0.37222527]
[1771140757220,0.00012,70750.0,70740.0,0.07068095]
[1771140757693,0.00012,70750.0,70742.0,0.07067928]
[1771140758321,4.541e-05,70753.0,70741.0,0.07068017]
[1771140758622,0.09030915,70754.0,70740.0,0.02412935]
[1771140759239,0.09030915,70754.0,70740.0,0.09481071]
[1771140760518,0.09030915,70754.0,70741.0,0.0706803]
[1771140762057,0.09030915,70754.0,70742.0,0.07067873]
[1771140763045,0.09030915,70754.0,70743.0,0.07067815]
[1771140763587,0.02317143,70753.0,70741.0,0.0002]
[1771140764113,0.09384038,70753.0,70741.0,0.0002]
[1771140764322,0.02317143,70752.0,70741.0,0.0002]
[1771140764976,0.02317143,70751.0,70741.0,0.0002]
[1771140765842,0.02300602,70751.0,70741.0,0.0002]
[1771140766048,0.0220076,70751.0,70741.0,0.0002]
[1771140769678,0.07067199,70750.0,70741.0,0.0002]
[1771140769848,0.02317143,70749.0,70741.0,0.0002]
[1771140772261,0.0004,70751.0,70741.0,0.07087974]
[1771140772465,0.0004,70751.0,70741.0,0.0002]
[1771140774772,0.3041761,70750.0,70741.0,0.0002]
[1771140774975,0.02317143,70749.0,70741.0,0.0002]
[1771140775827,0.02317143,70747.0,70741.0,0.0002]
[1771140776036,0.0004,70751.0,70733.0,0.0002]
[1771140776037,0.28100467,70744.0,70733.0,0.0002]
[1771140776240,0.02317143,70741.0,70733.0,0.0002]
[1771140777371,0.02317143,70741.0,70733.0,0.00032992]
[1771140778740,0.02317143,70741.0,70733.0,0.07101822]
[1771140779123,0.02317143,70741.0,70734.0,0.07068656]
[1771140780716,0.02317143,70741.0,70733.0,0.00032992]
[1771140786196,0.02417143,70741.0,70733.0,0.00032992]
[1771140786379,0.001,70741.0,70736.0,0.07068501]
[1771140786610,6.5e-05,70743.0,70736.0,0.07068501]
[1771140787070,0.02317143,70747.0,70733.0,0.29434513]
[1771140787297,0.00052,70750.0,70745.0,0.0706761]
[1771140787510,0.00052,70750.0,70743.0,0.07067659]
[1771140787922,0.00052,70750.0,70742.0,0.07067931]
[1771140788879,0.00152,70750.0,70742.0,0.07067931]
[1771140789386,0.00152,70750.0,70743.0,0.07067757]
[1771140789589,0.00052,70750.0,70744.0,0.07067651]
[1771140789791,0.00052,70750.0,70742.0,0.07067929]
[1771140790962,0.00152,70750.0,70742.0,0.07067929]
[1771140791158,0.00152,70750.0,70741.0,0.07067965]
[1771140791367,0.02317143,70749.0,70734.0,0.0002]
[1771140791570,0.02317143,70749.0,70738.0,0.07068305]
[1771140792152,0.02317143,70749.0,70734.0,0.0002]
[1771140792153,0.02317143,70749.0,70735.0,0.07068636]
[1771140792358,0.02317143,70749.0,70741.0,0.07068014]
[1771140792558,0.02317143,70749.0,70740.0,0.070681]
[1771140793470,0.02346903,70749.0,70740.0,0.070681]
[1771140795335,0.02346903,70749.0,70736.0,0.07068455]
[1771140795582,0.02346903,70749.0,70734.0,0.28294837]
[1771140795583,0.28362792,70746.0,70734.0,0.0002]
[1771140795819,0.02270641,70744.0,70734.0,0.0002]
[1771140796323,0.02270641,70744.0,70735.0,0.07068562]
[1771140796548,0.02282901,70744.0,70734.0,0.07088554]
[1771140796997,0.02282901,70744.0,70734.0,0.0002]
[1771140797219,0.02282901,70744.0,70734.0,0.07088723]
[1771140797458,0.02382901,70744.0,70734.0,0.07088723]
[1771140802728,0.28362792,70743.0,70734.0,0.0002]
[1771140802941,0.02270641,70742.0,70734.0,0.0002]
[1771140803712,0.02282901,70742.0,70734.0,0.0002]
[1771140804843,0.02382901,70742.0,70734.0,0.0002]
[1771140805066,0.0011226,70742.0,70738.0,0.07068288]
[1771140805284,0.000575,70749.0,70743.0,0.07067745]
[1771140805495,0.000575,70749.0,70744.0,0.0706772]
[1771140805707,0.000575,70749.0,70745.0,0.0706755]
[1771140806642,0.000575,70749.0,70744.0,0.0706772]
[1771140806859,0.000575,70749.0,70723.0,0.30495377]
[1771140806860,0.02270641,70748.0,70723.0,0.30495377]
[1771140807087,0.02270641,70744.0,70733.0,0.07101742]
[1771140807907,0.02270641,70744.0,70733.0,0.00032992]
[1771140808159,0.02370641,70744.0,70733.0,0.00032992]
[1771140809738,0.02370641,70744.0,70729.0,0.0002]
[1771140809739,0.28362792,70739.0,70729.0,0.0002]
[1771140809896,0.02270641,70738.0,70729.0,0.0002]
[1771140811167,0.02270641,70737.0,70727.0,0.0002]
[1771140811497,0.02270641,70734.0,70727.0,0.0002]
[1771140812938,0.28362792,70734.0,70727.0,0.0002]
[1771140813154,0.02270641,70733.0,70727.0,0.0002]
[1771140814156,0.07068498,70737.0,70715.0,0.000375]
[1771140814157,0.02270641,70731.0,70715.0,0.000375]
[1771140814365,0.33876,70732.0,70715.0,0.000375]
[1771140814366,0.02270641,70728.0,70715.0,0.000375]
[1771140815454,0.00012,70730.0,70715.0,0.000375]
[1771140815455,0.02270641,70726.0,70715.0,0.000375]
[1771140816290,0.28362792,70725.0,70715.0,0.000375]
[1771140816518,0.02270641,70724.0,70715.0,0.000375]
[1771140816946,0.02270641,70724.0,70708.0,0.09509774]
[1771140816947,0.02270641,70724.0,70708.0,0.0002]
[1771140817151,0.28362792,70720.0,70708.0,0.0002]
[1771140817385,0.02270641,70719.0,70708.0,0.0002]
[1771140817823,0.02270641,70717.0,70708.0,0.0002]
[1771140818242,0.02270641,70718.0,70710.0,0.00012]
[1771140818440,0.02270641,70717.0,70701.0,0.07072013]
[1771140818677,0.28362792,70717.0,70701.0,0.07071953]
[1771140818887,0.02270641,70716.0,70704.0,0.07071731]
[1771140819097,0.02270641,70716.0,70702.0,0.07071865]
[1771140819509,0.02270641,70716.0,70701.0,0.00043358]
[1771140819715,0.02270641,70716.0,70703.0,0.07071785]
[1771140820361,0.02270641,70716.0,70704.0,0.07071735]
[1771140820790,0.02270641,70716.0,70701.0,0.00043358]
[1771140820791,0.00012,70720.0,70708.0,0.28056912]
[1771140821007,0.00012,70720.0,70714.0,0.07070726]
[1771140821430,0.00012,70720.0,70714.0,0.07055666]
[1771140822139,0.00012,70720.0,70715.0,0.07070611]
[1771140822341,0.00012,70720.0,70714.0,0.07055666]
[1771140823797,0.00012,70720.0,70714.0,0.07075666]
[1771140824969,0.00012,70720.0,70715.0,0.07070611]
[1771140825191,0.00012,70720.0,70714.0,0.07075666]
[1771140825696,0.00024,70720.0,70714.0,0.07075666]
[1771140826444,0.00024,70720.0,70714.0,0.0002]
[1771140828136,0.6329364,70730.0,70714.0,0.0002]
[1771140828137,0.11267544,70768.0,70731.0,0.02255734]
[1771140828299,0.42548687,70783.0,70730.0,0.07742216]
[1771140828300,0.02288645,70799.0,70761.0,0.03234816]
[1771140828501,0.2941364,70840.0,70761.0,0.03234816]
[1771140828502,0.00012,70800.0,70796.0,0.07062546]
[1771140828696,0.00012,70800.0,70799.0,0.07062246]
[1771140828697,0.26418109,70800.0,70799.0,0.07062246]
[1771140829002,0.26418109,70800.0,70796.0,0.13916515]
[1771140829003,0.14566514,70800.0,70792.0,0.11134218]
[1771140829230,0.12277869,70800.0,70792.0,0.07062865]
[1771140829561,0.02288645,70799.0,70790.0,0.07074966]
[1771140829761,0.12321219,70800.0,70787.0,0.07063441]
[1771140829762,0.26406109,70796.0,70787.0,0.07063441]
[1771140829926,0.02288645,70793.0,70783.0,0.11134218]
[1771140830247,0.02288645,70793.0,70780.0,0.68804399]
[1771140830480,0.00012,70790.0,70779.0,0.11088701]
[1771140830753,0.00012,70790.0,70789.0,0.07063244]
[1771140830991,0.00012,70790.0,70788.0,0.07063342]
[1771140831326,0.00012,70790.0,70776.0,0.02255734]
[1771140831965,0.00012,70790.0,70779.0,0.07064173]
[1771140832182,1e-08,70850.0,70823.0,0.02255734]
[1771140832391,0.02288645,70855.0,70840.0,0.33046833]
[1771140832621,0.26406109,70856.0,70848.0,0.07057362]
[1771140832622,0.00737397,70849.0,70848.0,0.07057362]
[1771140832824,0.26406109,70856.0,70840.0,0.00025006]
[1771140833705,0.07056608,70856.0,70840.0,0.00025006]
[1771140833921,0.26406109,70855.0,70840.0,0.00025006]
[1771140834479,0.35458109,70855.0,70840.0,0.00025006]
[1771140834871,0.35458109,70855.0,70840.0,0.0708313]
[1771140835072,0.35458109,70855.0,70840.0,0.00025006]
[1771140835570,0.26406109,70849.0,70830.0,0.00012]
[1771140835812,0.28707736,70849.0,70836.0,0.07058469]
[1771140836018,0.62567736,70849.0,70836.0,0.07058469]
[1771140836215,0.62567736,70849.0,70837.0,0.07058437]
[1771140836991,0.62567736,70849.0,70837.0,0.07058446]
[1771140837237,0.33872982,70849.0,70836.0,0.07058546]
[1771140837407,0.33872982,70849.0,70835.0,0.07058638]
[1771140837613,0.33872982,70849.0,70834.0,0.07058725]
[1771140837820,0.33872982,70849.0,70832.0,0.07058956]
[1771140837821,0.60279091,70849.0,70832.0,0.07058956]
[1771140838015,0.60279091,70849.0,70830.0,0.07071056]
[1771140838216,0.0705638,70858.0,70830.0,0.07071056]
[1771140838217,0.26406109,70859.0,70840.0,0.00012]
[1771140838457,0.0004,70849.0,70844.0,0.07057688]
[1771140838619,0.0004,70849.0,70840.0,0.00024982]
[1771140839187,0.0004,70849.0,70844.0,0.07057662]
[1771140839511,0.0004,70849.0,70843.0,0.07007667]
[1771140839713,0.26406109,70854.0,70845.0,0.07057635]
[1771140840012,0.0004,70857.0,70845.0,0.07057635]
[1771140840226,0.26446109,70857.0,70846.0,0.07057551]
[1771140840633,0.26446109,70857.0,70844.0,0.07057721]
[1771140840992,0.26446109,70857.0,70840.0,0.00024982]
[1771140840993,0.26406109,70855.0,70840.0,0.00024982]
[1771140841132,0.28694754,70855.0,70840.0,0.00024982]
[1771140841336,0.0004,70857.0,70840.0,0.00024982]
[1771140841337,0.26406109,70853.0,70840.0,0.00024982]
[1771140841562,0.0004,70857.0,70840.0,0.00024982]
[1771140841563,0.26406109,70851.0,70840.0,0.00024982]
[1771140841761,0.26406109,70849.0,70840.0,0.00024982]
[1771140842084,0.00012,70850.0,70839.0,0.07058212]
[1771140842236,0.00024982,70850.0,70834.0,0.07058746]
[1771140842437,0.26406109,70849.0,70835.0,0.07058582]
[1771140842621,0.26406109,70847.0,70830.0,0.00012]
[1771140842829,0.26406109,70847.0,70837.0,0.0705845]
[1771140843029,0.26406109,70847.0,70830.0,0.00012]
[1771140843233,0.00024982,70850.0,70832.0,0.07058874]
[1771140843234,0.26406109,70845.0,70832.0,0.07058874]
[1771140843434,0.28694754,70845.0,70831.0,0.07059056]
[1771140843634,0.28694754,70845.0,70833.0,0.07058812]
[1771140843874,0.26406109,70845.0,70821.0,0.147]
[1771140844061,0.00012,70840.0,70822.0,0.147]
[1771140844258,0.00012,70840.0,70834.0,0.07058665]
[1771140844791,0.00012,70840.0,70837.0,0.0705837]
[1771140844998,0.00012,70840.0,70827.0,0.07059454]
[1771140845212,0.00012,70840.0,70826.0,0.147]
[1771140845428,0.00012,70840.0,70830.0,0.07059121]
[1771140845560,0.00012,70840.0,70832.0,0.07058871]
[1771140845760,0.00012,70840.0,70826.0,0.147]
[1771140846367,0.00012,70840.0,70830.0,0.0705914]
[1771140847180,0.00012,70840.0,70828.0,0.07059319]
[1771140847584,0.00012,70840.0,70829.0,0.07059172]
[1771140848412,0.00012,70840.0,70823.0,0.147]
[1771140848413,0.02288645,70838.0,70823.0,0.147]
[1771140848616,0.00012,70840.0,70810.0,0.00012]
[1771140848617,0.00012,70830.0,70810.0,0.00012]
[1771140849001,0.00012,70830.0,70800.0,0.00012]
[1771140849002,0.26418109,70820.0,70800.0,0.00012]
[1771140849135,0.02288645,70817.0,70803.0,0.07061846]
[1771140849334,0.33046833,70820.0,70800.0,0.0707412]
[1771140849540,0.02288645,70815.0,70800.0,0.00012]
[1771140849800,0.02288645,70814.0,70800.0,0.00012]
[1771140850139,0.00012972,70814.0,70800.0,0.00012]
[1771140850579,0.00012972,70814.0,70801.0,0.07062038]
[1771140851078,0.00012972,70814.0,70800.0,0.07074132]
[1771140851434,0.00012972,70814.0,70800.0,0.00012]
[1771140851435,0.07060945,70813.0,70800.0,0.00012]
[1771140851615,0.0004,70858.0,70800.0,0.00012]
[1771140851830,0.11798287,70878.0,70854.0,0.07056747]
[1771140852047,0.11798287,70878.0,70845.0,0.02255734]
[1771140852048,0.00737187,70862.0,70845.0,0.02255734]
[1771140852244,0.00737187,70862.0,70857.0,0.07056465]
[1771140852389,0.00737187,70862.0,70856.0,0.07056547]
[1771140852594,0.00737187,70862.0,70859.0,0.07056232]
[1771140852815,0.00737187,70862.0,70860.0,0.07056151]
[1771140853218,0.26406109,70872.0,70847.0,0.29211347]
[1771140853381,0.31764083,70870.0,70858.0,0.07056358]
[1771140853582,0.31764083,70870.0,70858.0,0.07056307]
[1771140853789,0.31764083,70870.0,70859.0,0.07056185]
[1771140854008,0.0004,70864.0,70861.0,0.07056009]
[1771140854213,0.0004,70864.0,70862.0,0.07055943]
[1771140854601,0.0004,70864.0,70861.0,0.07056029]
[1771140854960,0.0004,70864.0,70862.0,0.07055921]
[1771140855301,0.0004,70864.0,70860.0,0.07056084]
[1771140855497,0.0004,70864.0,70862.0,0.0705594]
[1771140855779,0.0004,70864.0,70861.0,0.0705599]
[1771140855953,0.0004,70864.0,70860.0,0.07056084]
[1771140856491,0.3345928,70878.0,70862.0,0.31671063]
[1771140856665,0.3345928,70878.0,70866.0,0.07055523]
[1771140856891,0.3345928,70878.0,70874.0,0.07054698]
[1771140856892,0.3242328,70878.0,70874.0,0.07054698]
[1771140857093,0.3242328,70878.0,70872.0,0.07054948]
[1771140857266,0.31764083,70883.0,70873.0,0.1374425]
[1771140857445,0.31764083,70883.0,70871.0,0.07054883]
[1771140857446,0.31777059,70883.0,70874.0,0.1374425]
[1771140857654,0.31777059,70883.0,70875.0,0.1374425]
[1771140857876,0.31777059,70883.0,70874.0,0.07054695]
[1771140858084,0.31777059,70883.0,70875.0,0.13743367]
[1771140858277,0.00012976,70883.0,70876.0,0.13743367]
[1771140858518,0.00012976,70883.0,70877.0,0.13743367]
[1771140858727,0.31764083,70882.0,70867.0,0.16361662]
[1771140859053,0.31764083,70882.0,70871.0,0.07055059]
[1771140859255,0.31764083,70882.0,70871.0,0.07040024]
[1771140859384,0.3403007,70882.0,70870.0,0.07055163]
[1771140859735,0.31764083,70880.0,70870.0,0.07055163]
[1771140860532,0.31764083,70880.0,70866.0,0.28222038]
[1771140860749,0.00012,70884.0,70859.0,0.31671063]
[1771140860750,0.002,70900.0,70871.0,0.31671063]
[1771140860947,0.35135766,70899.0,70871.0,0.16374638]
[1771140861099,0.31764083,70886.0,70871.0,0.00012976]
[1771140861296,0.01313071,70885.0,70875.0,0.07054593]
[1771140861543,0.31764083,70886.0,70876.0,0.07054548]
[1771140861689,0.01313068,70885.0,70876.0,0.07054548]
[1771140861896,0.31764083,70886.0,70873.0,0.07054862]
[1771140862091,0.01313068,70885.0,70873.0,0.07054862]
[1771140862404,0.31764083,70886.0,70873.0,0.07054862]
[1771140862635,0.0131319,70885.0,70873.0,0.07054862]
[1771140862808,0.31764083,70886.0,70873.0,0.07054862]